fUSD/lending_fUSD_20240808
["ID","MTS","AMOUNT","RATE_DAILY","PERIOD"]
[334442421,1723103167352,-150.0,0.00031789,120]
[334442422,1723103167378,-150.0,0.00031829,120]
[334442423,1723103167403,-150.0,0.0003196,120]
[334442424,1723103167430,-150.0,0.0003198,120]
[334442425,1723103167455,-1100.0,0.00032,120]
[334442426,1723103167480,-1800.0,0.00032,33]
[334442427,1723103167506,-150.0,0.00032022,120]
[334442428,1723103167531,-500.0,0.00032054,30]
[334442429,1723103167556,-625.0,0.00032054,120]
[334442430,1723103167585,-150.0,0.00032082,120]
[334442431,1723103167612,-150.0,0.0003221,120]
[334442432,1723103167641,-150.0,0.00032228,120]
[334442433,1723103167667,-150.0,0.00032229,120]
[334442434,1723103167692,-150.0,0.00032355,120]
[334442435,1723103167717,-150.0,0.00032406,120]
[334442436,1723103167743,-150.0,0.00032439,120]
[334442437,1723103167768,-150.0,0.00032521,120]
[334442438,1723103167793,-151.0,0.00032685,120]
[334442439,1723103167818,-2947.0,0.000327,35]
[334442440,1723103167843,-639.07353459,0.00032815,30]
[334442441,1723103167868,-1000.0,0.00032876,30]
[334442442,1723103167894,-1000.0,0.00032876,30]
[334442443,1723103167919,-1000.0,0.00032876,30]
[334442444,1723103167944,-1000.0,0.00032876,30]
[334442445,1723103167970,-1000.0,0.00032876,30]
[334442446,1723103167999,-1000.0,0.00032876,30]
[334442447,1723103168024,-1000.0,0.00032876,30]
[334442448,1723103168049,-674.14516155,0.00032876,30]
[334442449,1723103168075,-500.0,0.00032876,30]
[334442450,1723103168101,-625.0,0.00032876,120]
[334442451,1723103168127,-1087.81,0.00032876,120]
[334442452,1723103168155,-1087.81,0.00032876,120]
[334442453,1723103168180,-1087.81,0.00032876,120]
[334442454,1723103168204,-1087.81,0.00032876,120]
[334442455,1723103168234,-1087.81,0.00032876,120]
[334442456,1723103168257,-1087.81,0.00032876,120]
[334442457,1723103168282,-1087.81,0.00032876,120]
[334442458,1723103168306,-1087.81,0.00032876,120]
[334442459,1723103168330,-1087.81,0.00032876,120]
[334442460,1723103168354,-1087.81,0.00032876,120]
[334442461,1723103168378,-1087.81,0.00032876,120]
[334442462,1723103168405,-1087.81,0.00032876,120]
[334442463,1723103168432,-1087.81,0.00032876,120]
[334442464,1723103168458,-1087.81,0.00032876,120]
[334442465,1723103168492,-1087.81,0.00032876,120]
[334442466,1723103168517,-1087.81,0.00032876,120]
[334442467,1723103168544,-1087.81,0.00032876,120]
[334442468,1723103168568,-1087.81,0.00032876,120]
[334442469,1723103168593,-1087.81,0.00032876,120]
[334442470,1723103168618,-1087.81,0.00032876,120]
[334442471,1723103168645,-1087.81,0.00032876,120]
[334442472,1723103168670,-1087.81,0.00032876,120]
[334442473,1723103168695,-1087.81,0.00032876,120]
[334442474,1723103168719,-1087.89557356,0.00032876,120]
[334442475,1723103168744,-2000.0,0.00032876,30]
[334442476,1723103168768,-2000.0,0.00032876,30]
[334442477,1723103168791,-2000.0,0.00032876,30]
[334442478,1723103168815,-2000.0,0.00032876,30]
[334442479,1723103168839,-2000.0,0.00032876,30]
[334442480,1723103168862,-2000.0,0.00032876,30]
[334442481,1723103168887,-1316.34668807,0.00032876,30]
[334442482,1723103168912,-200.0,0.00032877,60]
[334442483,1723103168936,-516.90648083,0.000329,30]
[334442484,1723103168960,-2273.49904696,0.000329,30]
[334442485,1723103168984,-160.7832474,0.00033,120]
[334442486,1723103169008,-1800.0,0.00033,34]
[334442487,1723103169032,-367.18956839,0.00033,60]
[334442488,1723103169057,-887.28,0.00033151,120]
[334442489,1723103169082,-411.4,0.00033151,120]
[334442490,1723103169108,-151.0,0.00033342,120]
[334442491,1723103169140,-574.92,0.000335,31]
[334442492,1723103169168,-574.92,0.000335,31]
[334442493,1723103169196,-574.92,0.000335,31]
[334442494,1723103169225,-574.92,0.000335,31]
[334442495,1723103169263,-574.92,0.000335,31]
[334442496,1723103169289,-574.92,0.000335,31]
[334442497,1723103169316,-574.92,0.000335,31]
[334442498,1723103169483,-574.92,0.000335,31]
[334442499,1723103169512,-574.92,0.000335,31]
[334442500,1723103169539,-574.92,0.000335,31]
[334442501,1723103169566,-574.92,0.000335,31]
[334442502,1723103169592,-574.92,0.000335,31]
[334442503,1723103169620,-574.92,0.000335,31]
[334442504,1723103169648,-574.92,0.000335,31]
[334442505,1723103169675,-574.92,0.000335,31]
[334442506,1723103169702,-574.92,0.000335,31]
[334442507,1723103169729,-574.92,0.000335,31]
[334442508,1723103169755,-574.92,0.000335,31]
[334442509,1723103169781,-574.92,0.000335,31]
[334442510,1723103169808,-574.92,0.000335,31]
[334442511,1723103169833,-500.0,0.00033698,30]
[334442512,1723103169858,-625.0,0.00033698,120]
[334442513,1723103169884,-500.0,0.00034,120]
[334442514,1723103169909,-1100.0,0.00034,120]
[334442515,1723103169933,-1800.0,0.00034,35]
[334442516,1723103169958,-151.0,0.00034027,120]
[334442517,1723103169983,-500.0,0.0003452,30]
[334442518,1723103170008,-625.0,0.0003452,120]
[334442519,1723103170033,-232.42,0.000346,30]
[334442520,1723103170059,-4605.200821,0.000348,30]
[334442521,1723103170085,-795.25244489,0.00035,120]
[334442522,1723103170109,-287.10763597,0.00035,30]
[334442523,1723103170137,-3667.60015417,0.00035,30]
[334442524,1723103170162,-200.0,0.00035,30]
[334442525,1723103170188,-6140.267761,0.00035,30]
[334442526,1723103170213,-150.0,0.00035,30]
[334442527,1723103170238,-359.57083704,0.00035,120]
[334442528,1723103170263,-1390.26444184,0.00035,90]
[334442529,1723103170288,-151.0,0.00035014,120]
[334442530,1723103170313,-500.0,0.00035342,30]
[334442531,1723103170337,-625.0,0.00035342,120]
[334442532,1723103170361,-151.0,0.0003537,120]
[334442533,1723103170386,-7675.334702,0.000355,30]
[334442534,1723103170411,-9210.401642,0.000356,30]
[334442535,1723103170436,-200.0,0.00035616,60]
[334442536,1723103170461,-9210.401642,0.000357,30]
[334442537,1723103170485,-10745.468582,0.000358,30]
[334442538,1723103170510,-9210.401642,0.0003582,30]
[334442539,1723103170535,-300.0,0.00035915,120]
[334442540,1723103170559,-3481.65934353,0.00035945,60]
[334442541,1723103170584,-1060.48783092,0.00035945,60]
[334442542,1723103170611,-50000.0,0.00036,36]
[334442543,1723103170638,-423.45365928,0.00036,120]
[334442544,1723103170663,-1150.0,0.00036,120]
[334442545,1723103170687,-2000.0,0.00036,120]
[334442546,1723103170711,-1100.0,0.00036,120]
[334442547,1723103170736,-1305.37049107,0.00036,120]
[334442548,1723103170762,-3241.7,0.00036114,54]
[334442549,1723103170787,-500.0,0.00036164,30]
[334442550,1723103170811,-625.0,0.00036164,120]
[334442551,1723103170836,-151.0,0.00036685,120]
[334442552,1723103170860,-151.0,0.00036712,120]
[334442553,1723103170886,-500.0,0.00036986,30]
[334442554,1723103170912,-625.0,0.00036986,120]
[334442555,1723103170941,-50000.0,0.00037,37]
[334442556,1723103170966,-9689.30517241,0.00037,30]
[334442557,1723103170990,-2000.0,0.00037,60]
[334442558,1723103171014,-68205.94047336,0.00037,30]
[334442559,1723103176171,-800.0,0.00029205,120]
[334442560,1723103176204,-548.0,0.00030613,30]
[334442561,1723103176258,-768.0,0.00033674,30]
[334442562,1723103176287,-497884.0,0.00037,30]
[334442563,1723103206492,-150.0,0.00027581,120]
[334442564,1723103206561,-2823.0,0.000327,35]
[334442565,1723103206586,-414.27244206,0.00032727,90]
[334442566,1723103206610,-500.0,0.00032727,60]
[334442567,1723103206642,-175.4,0.000347,30]
[334442568,1723103206669,-3105.3,0.00036114,54]
[334442569,1723103206694,-498531.05952664,0.00037,30]
[334442570,1723103206893,-1075.0,0.00037042,30]
[334442571,1723103206921,-6100.0,0.000374,120]
[334442572,1723103206948,-500.0,0.00037808,30]
[334442573,1723103206974,-625.0,0.00037808,120]
[334442574,1723103207000,-300.0,0.00037909,120]
[334442575,1723103207026,-241.00460531,0.00037999,120]
[334442576,1723103207055,-50000.0,0.00038,38]
[334442577,1723103207082,-2000.0,0.00038,120]
[334442578,1723103207108,-755.64715005,0.00038,120]
[334442579,1723103207134,-739.21916916,0.00038,30]
[334442580,1723103207164,-413.0,0.00038,90]
[334442581,1723103207189,-1100.0,0.00038,120]
[334442582,1723103207216,-2000.0,0.00038,60]
[334442583,1723103207240,-1011.79925087,0.00038,120]
[334442584,1723103207266,-1062.33714,0.00038,120]
[334442585,1723103207293,-151.0,0.00038055,120]
[334442586,1723103207319,-500.0,0.00038356,60]
[334442587,1723103207343,-500.0,0.00038356,63]
[334442588,1723103207369,-500.0,0.00038356,66]
[334442589,1723103207394,-500.0,0.00038356,69]
[334442590,1723103207420,-500.0,0.00038356,72]
[334442591,1723103207445,-501.87578702,0.00038356,75]
[334442592,1723103207471,-242.73688057,0.00038356,60]
[334442593,1723103207495,-1000.0,0.00038356,30]
[334442594,1723103207519,-151.0,0.00038356,120]
[334442595,1723103207545,-1000.0,0.00038378,30]
[334442596,1723103207570,-1213.24536973,0.000384,120]
[334442597,1723103207594,-609.7411922,0.000384,33]
[334442598,1723103207620,-156.78491516,0.000384,33]
[334442599,1723103207647,-1000.0,0.00038401,30]
[334442600,1723103207673,-1000.0,0.00038423,30]
[334442601,1723103207698,-1000.0,0.00038445,30]
[334442602,1723103207723,-1000.0,0.00038468,30]
[334442603,1723103207747,-1000.0,0.0003849,30]
[334442604,1723103207772,-1024253.0,0.000385,30]
[334442605,1723103207801,-1000.0,0.00038512,30]
[334442606,1723103207827,-1000.0,0.00038535,30]
[334442607,1723103207853,-1000.0,0.00038557,30]
[334442608,1723103207879,-1000.0,0.00038579,30]
[334442609,1723103207904,-1000.0,0.00038601,30]
[334442610,1723103207930,-1000.0,0.00038624,30]
[334442611,1723103207956,-500.0,0.0003863,30]
[334442612,1723103207982,-625.0,0.0003863,120]
[334442613,1723103208008,-1000.0,0.00038646,30]
[334442614,1723103208032,-1000.0,0.00038668,30]
[334442615,1723103208062,-1000.0,0.00038691,30]
[334442616,1723103208088,-1000.0,0.00038713,30]
[334442617,1723103208114,-1000.0,0.00038735,30]
[334442618,1723103208144,-1000.0,0.00038758,30]
[334442619,1723103208170,-1000.0,0.0003878,30]
[334442620,1723103208196,-8999.999999,0.000388,30]
[334442621,1723103208222,-1000.0,0.00038802,30]
[334442622,1723103208251,-1000.0,0.00038824,30]
[334442623,1723103208276,-1000.0,0.00038847,30]
[334442624,1723103208314,-1000.0,0.00038869,30]
[334442625,1723103208349,-1404.31087272,0.0003888,90]
[334442626,1723103208381,-1000.0,0.00038891,30]
[334442627,1723103208414,-1064.5440525,0.000389,120]
[334442628,1723103208448,-5761.31946227,0.000389,30]
[334442629,1723103208484,-1000.0,0.00038914,30]
[334442630,1723103208515,-1000.0,0.00038936,30]
[334442631,1723103208554,-1000.0,0.00038958,30]
[334442632,1723103208588,-1000.0,0.00038981,30]
[334442633,1723103208619,-5028.0,0.0003899,120]
[334442634,1723103208657,-50000.0,0.00039,39]
[334442635,1723103208690,-160.0,0.00039,30]
[334442636,1723103208726,-1058.0,0.00039,120]
[334442637,1723103208758,-1816.13332983,0.00039,120]
[334442638,1723103208788,-150.0,0.00039,60]
[334442639,1723103208823,-45409.51225196,0.00039,120]
[334442640,1723103208854,-1458.55557874,0.00039,30]
[334442641,1723103208886,-1000.0,0.00039003,30]
[334442642,1723103208918,-1000.0,0.00039025,30]
[334442643,1723103208949,-1000.0,0.00039047,30]
[334442644,1723103208980,-1000.0,0.0003907,30]
[334442645,1723103209013,-1000.0,0.00039092,30]
[334442646,1723103209045,-1000.0,0.00039114,30]
[334442647,1723103209076,-1000.0,0.00039137,30]
[334442648,1723103209105,-1000.0,0.00039159,30]
[334442649,1723103209134,-1000.0,0.00039181,30]
[334442650,1723103209166,-1000.0,0.00039204,30]
[334442651,1723103209197,-1000.0,0.00039226,30]
[334442652,1723103209228,-1000.0,0.00039248,30]
[334442653,1723103209259,-1000.0,0.0003927,30]
[334442654,1723103209289,-1000.0,0.00039293,30]
[334442655,1723103209319,-1000.0,0.00039315,30]
[334442656,1723103209349,-1000.0,0.00039337,30]
[334442657,1723103209379,-1000.0,0.0003936,30]
[334442658,1723103209409,-1000.0,0.00039382,30]
[334442659,1723103209439,-151.0,0.00039397,120]
[334442660,1723103209468,-569.5749242,0.000394,30]
[334442661,1723103209497,-1000.0,0.00039404,30]
[334442662,1723103209526,-1000.0,0.00039427,30]
[334442663,1723103209555,-1000.0,0.00039449,30]
[334442664,1723103209585,-500.0,0.00039452,30]
[334442665,1723103209615,-625.0,0.00039452,120]
[334442666,1723103209647,-1000.0,0.00039471,30]
[334442667,1723103209677,-1000.0,0.00039493,30]
[334442668,1723103209707,-1000.0,0.00039516,30]
[334442669,1723103209738,-3387.6,0.00039529,74]
[334442670,1723103209768,-1000.0,0.00039538,30]
[334442671,1723103209797,-1000.0,0.0003956,30]
[334442672,1723103209824,-1000.0,0.00039583,30]
[334442673,1723103209849,-1000.0,0.00039605,30]
[334442674,1723103209874,-1000.0,0.00039627,30]
[334442675,1723103209900,-1000.0,0.0003965,30]
[334442676,1723103209925,-1000.0,0.00039672,30]
[334442677,1723103209950,-1000.0,0.00039694,30]
[334442678,1723103210207,-200.0,0.000397,120]
[334442679,1723103210235,-1000.0,0.00039716,30]
[334442680,1723103210259,-1000.0,0.00039739,30]
[334442681,1723103210284,-1000.0,0.00039761,30]
[334442682,1723103210309,-1000.0,0.00039783,30]
[334442683,1723103210335,-36616.40449654,0.000398,60]
[334442684,1723103210362,-1000.0,0.00039806,30]
[334442685,1723103210386,-1406.90598997,0.00039808,90]
[334442686,1723103210410,-1000.0,0.00039828,30]
[334442687,1723103210434,-1509556.0,0.00039844,30]
[334442688,1723103210459,-1000.0,0.0003985,30]
[334442689,1723103210482,-1000.0,0.00039873,30]
[334442690,1723103210507,-218809.182915,0.0003988,30]
[334442691,1723103210531,-50000.0,0.00039887,30]
[334442692,1723103210555,-1000.0,0.00039895,30]
[334442693,1723103210579,-155314.93280934,0.00039896,120]
[334442694,1723103210602,-353.55991747,0.00039898,36]
[334442695,1723103210627,-287768.0,0.000399,120]
[334442696,1723103210652,-1684.6418079,0.000399,120]
[334442697,1723103210676,-235.273,0.000399,120]
[334442698,1723103210700,-1250.69838314,0.000399,120]
[334442699,1723103210724,-2080.0857119,0.000399,30]
[334442700,1723103210748,-300.0,0.00039902,120]
[334442701,1723103210772,-1000.0,0.00039917,30]
[334442702,1723103210798,-1000.0,0.00039939,30]
[334442703,1723103210823,-1000.0,0.00039962,30]
[334442704,1723103210848,-10675.2601204,0.0003998,30]
[334442705,1723103210872,-1000.0,0.00039984,30]
[334442706,1723103210897,-250.0,0.00039999,30]
[334442707,1723103210925,-50000.0,0.0004,30]
[334442708,1723103210952,-50000.0,0.0004,40]
[334442709,1723103210978,-390.0,0.0004,60]
[334442710,1723103211002,-2110.0,0.0004,30]
[334442711,1723103211027,-2000.0,0.0004,120]
[334442712,1723103211053,-477.12749073,0.0004,30]
[334442713,1723103211078,-901.37677129,0.0004,120]
[334442714,1723103211102,-1483.79673033,0.0004,30]
[334442715,1723103211126,-188.42296935,0.0004,30]
[334442716,1723103211152,-183.12128391,0.0004,120]
[334442717,1723103211176,-666.46000638,0.0004,120]
[334442718,1723103211201,-369.17867325,0.0004,30]
[334442719,1723103211225,-701.4490649,0.0004,30]
[334442720,1723103211249,-205.68790532,0.0004,120]
[334442721,1723103211273,-728.39482966,0.0004,120]
[334442722,1723103211297,-1100.0,0.0004,120]
[334442723,1723103211321,-1173.0,0.0004,120]
[334442724,1723103211344,-2476.60024953,0.0004,30]
[334442725,1723103211368,-1876.27999629,0.0004,120]
[334442726,1723103211392,-2361.89244816,0.0004,30]
[334442727,1723103211415,-3870.0,0.0004,120]
[334442728,1723103211439,-341.57075921,0.0004,30]
[334442729,1723103211463,-1566.0,0.0004,60]
[334442730,1723103211487,-1473.0,0.0004,60]
[334442731,1723103211511,-200.0,0.0004,60]
[334442732,1723103211537,-410.0,0.0004,30]
[334442733,1723103211561,-684.31321585,0.0004,30]
[334442734,1723103211584,-377.0,0.0004,60]
[334442735,1723103211611,-196.21760631,0.0004,120]
[334442736,1723103211636,-922.0,0.0004,120]
[334442737,1723103211662,-29416.29013862,0.0004,30]
[334442738,1723103211686,-33684.07101365,0.0004,30]
[334442739,1723103211712,-17575.48871248,0.0004,45]
[334442740,1723103211737,-36293.72428578,0.0004,60]
[334442741,1723103211763,-1090.0,0.0004,120]
[334442742,1723103211788,-2000.0,0.0004,75]
[334442743,1723103211814,-1590.11,0.0004,30]
[334442744,1723103211840,-6197.79240233,0.0004,120]
[334442745,1723103211865,-501.0,0.0004,120]
[334442746,1723103211891,-1011.79925087,0.0004,120]
[334442747,1723103211918,-1062.33714,0.0004,120]
[334442748,1723103211942,-2008.96,0.0004,32]
[334442749,1723103211968,-363.33916491,0.0004,120]
[334442750,1723103211993,-238.41877913,0.0004,120]
[334442751,1723103212018,-681.0,0.0004,120]
[334442752,1723103212043,-659.03472437,0.0004,120]
[334442753,1723103212069,-352.0,0.0004,60]
[334442754,1723103212094,-2200.07338358,0.0004,30]
[334442755,1723103212119,-782.14,0.0004,120]
[334442756,1723103212146,-349.68,0.0004,120]
[334442757,1723103212171,-1627.21,0.0004,120]
[334442758,1723103212197,-816.72,0.0004,120]
[334442759,1723103212222,-1497.33,0.0004,120]
[334442760,1723103212247,-150.0,0.0004,60]
[334442761,1723103212271,-1000.0,0.00040006,30]
[334442762,1723103212296,-151.0,0.00040027,120]
[334442763,1723103212319,-1000.0,0.00040029,30]
[334442764,1723103212343,-1000.0,0.00040051,30]
[334442765,1723103212367,-429.70150387,0.00040061,120]
[334442766,1723103212392,-1226.35998231,0.00040073,90]
[334442767,1723103212416,-1000.0,0.00040073,30]
[334442768,1723103212441,-1000.0,0.00040096,30]
[334442769,1723103212466,-2042.71147435,0.000401,120]
[334442770,1723103212491,-287.24210603,0.000401,120]
[334442771,1723103212642,-1000.0,0.00040118,30]
[334442772,1723103212666,-888.31548055,0.00040131,30]
[334442773,1723103212691,-1000.0,0.0004014,30]
[334442774,1723103212715,-1000.0,0.00040162,30]
[334442775,1723103212739,-1000.0,0.00040185,30]
[334442776,1723103212763,-4162.78531656,0.000402,120]
[334442777,1723103212787,-378.3648854,0.000402,120]
[334442778,1723103212812,-260.0,0.000402,30]
[334442779,1723103212837,-1000.0,0.00040207,30]
[334442780,1723103212862,-1000.0,0.00040229,30]
[334442781,1723103212887,-1000.0,0.00040252,30]
[334442782,1723103212912,-315.39248194,0.00040258,40]
[334442783,1723103212937,-250.03736576,0.00040258,40]
[334442784,1723103212962,-4318.54716679,0.00040258,40]
[334442785,1723103212988,-500.0,0.00040273,30]
[334442786,1723103213015,-625.0,0.00040273,120]
[334442787,1723103213040,-1750.31707936,0.00040274,30]
[334442788,1723103213067,-2492.01812138,0.00040298,59]
[334442789,1723103213093,-330.8875519,0.000403,120]
[334442790,1723103213119,-202.57322172,0.000403,120]
[334442791,1723103213149,-5023.0,0.000403,120]
[334442792,1723103213174,-1306.0,0.000404,120]
[334442793,1723103213201,-155.521321,0.000404,42]
[334442794,1723103213227,-171149.26558516,0.0004044,30]
[334442795,1723103213253,-2110.0,0.000405,30]
[334442796,1723103213278,-327.86231569,0.00040659,120]
[334442797,1723103213303,-151.0,0.0004074,120]
[334442798,1723103213328,-173.0,0.00040746,60]
[334442799,1723103213354,-5744.16620222,0.000409,30]
[334442800,1723103213381,-50000.0,0.00041,31]
[334442801,1723103213409,-50000.0,0.00041,41]
[334442802,1723103213434,-1089.6309219,0.00041,30]
[334442803,1723103213459,-1270.69400687,0.00041,120]
[334442804,1723103213482,-150.0,0.00041,60]
[334442805,1723103213506,-250.0,0.00041,120]
[334442806,1723103213530,-250.0,0.00041,120]
[334442807,1723103213556,-3311.0,0.00041,120]
[334442808,1723103213580,-2110.0,0.00041,30]
[334442809,1723103213605,-4570.0,0.00041,120]
[334442810,1723103213629,-2000.0,0.00041,120]
[334442811,1723103213654,-526.48787373,0.00041,120]
[334442812,1723103213678,-109549.11873502,0.00041,120]
[334442813,1723103213702,-419.59675254,0.00041,120]
[334442814,1723103213726,-349.3,0.00041,120]
[334442815,1723103213751,-2224.82960213,0.00041044,120]
[334442816,1723103213776,-1168.03863877,0.00041078,120]
[334442817,1723103213801,-500.0,0.00041095,30]
[334442818,1723103213826,-625.0,0.00041095,120]
[334442819,1723103213851,-250.72811492,0.00041095,120]
[334442820,1723103213877,-515.32187881,0.00041095,30]
[334442821,1723103213903,-553.35826764,0.00041095,120]
[334442822,1723103213929,-815.38,0.00041096,30]
[334442823,1723103213954,-152.13,0.00041123,30]
[334442824,1723103213979,-1001.5,0.000412,120]
[334442825,1723103214004,-1000.0,0.000413,30]
[334442826,1723103214030,-1000.0,0.000413,30]
[334442827,1723103214054,-1000.0,0.000413,30]
[334442828,1723103214078,-2110.0,0.000415,30]
[334442829,1723103214102,-1000.0,0.000416,30]
[334442830,1723103214126,-1000.0,0.000416,30]
[334442831,1723103214153,-793.0,0.00041638,30]
[334442832,1723103214181,-151.0,0.00041699,120]
[334442833,1723103214207,-396.43523186,0.00041895,120]
[334442834,1723103214233,-1000.0,0.000419,30]
[334442835,1723103214257,-1000.0,0.000419,30]
[334442836,1723103214282,-5000.0,0.000419,90]
[334442837,1723103214318,-500.0,0.00041917,30]
[334442838,1723103214343,-625.0,0.00041917,120]
[334442839,1723103214370,-50000.0,0.00042,32]
[334442840,1723103214401,-50000.0,0.00042,42]
[334442841,1723103214426,-800.0,0.00042,120]
[334442842,1723103214450,-1156.35,0.00042,80]
[334442843,1723103214476,-2000.0,0.00042,120]
[334442844,1723103214501,-1634.30835324,0.00042,120]
[334442845,1723103214527,-150.0,0.00042,60]
[334442846,1723103214552,-257.30826708,0.00042,120]
[334442847,1723103214578,-2110.0,0.00042,30]
[334442848,1723103214603,-709.88238466,0.00042,120]
[334442849,1723103214629,-3000.0,0.00042,120]
[334442850,1723103214657,-2000.0,0.00042,30]
[334442851,1723103214682,-994.28197398,0.00042,120]
[334442852,1723103214709,-182.92376119,0.00042,60]
[334442853,1723103214736,-151.0,0.00042082,120]
[334442854,1723103214762,-670.1406,0.00042088,30]
[334442855,1723103214787,-61052.85742583,0.000421,30]
[334442856,1723103220523,-423.59496864,0.00036,120]
[334442857,1723103220553,-1616473.35939944,0.000421,30]
[334442858,1723103220578,-1000.0,0.000422,30]
[334442859,1723103220602,-1000.0,0.000422,30]
[334442860,1723103220627,-429.70150387,0.00042285,120]
[334442861,1723103220652,-670.1406,0.00042288,30]
[334442862,1723103220677,-357.59766149,0.0004245,120]
[334442863,1723103220702,-670.1406,0.00042488,30]
[334442864,1723103220727,-1000.0,0.000425,30]
[334442865,1723103220751,-1000.0,0.000425,30]
[334442866,1723103220776,-2110.0,0.000425,30]
[334442867,1723103220802,-1286.17796549,0.000425,120]
[334442868,1723103220840,-10490.0,0.000425,60]
[334442869,1723103220867,-151.080814,0.00042648,119]
[334442870,1723103220894,-151.080814,0.00042648,119]
[334442871,1723103220922,-151.080814,0.00042648,119]
[334442872,1723103220949,-151.080814,0.00042648,119]
[334442873,1723103220976,-151.080814,0.00042648,119]
[334442874,1723103221001,-670.1406,0.00042688,30]
[334442875,1723103221026,-500.0,0.00042739,30]
[334442876,1723103221051,-625.0,0.00042739,120]
[334442877,1723103221077,-151.080814,0.00042748,119]
[334442878,1723103221104,-151.080814,0.00042748,119]
[334442879,1723103221129,-151.080814,0.00042748,119]
[334442880,1723103221157,-151.080814,0.00042748,119]
[334442881,1723103221183,-151.080814,0.00042748,119]
[334442882,1723103221208,-75000.0,0.0004278,120]
[334442883,1723103221234,-1224.02561551,0.00042798,120]
[334442884,1723103221259,-216.2095034,0.00042798,90]
[334442885,1723103221284,-286.76624068,0.00042798,90]
[334442886,1723103221309,-1000.0,0.000428,30]
[334442887,1723103221354,-151.080814,0.00042848,119]
[334442888,1723103221379,-151.080814,0.00042848,119]
[334442889,1723103221404,-151.080814,0.00042848,119]
[334442890,1723103221430,-151.080814,0.00042848,119]
[334442891,1723103221455,-151.080814,0.00042848,119]
[334442892,1723103221480,-229291.713177,0.0004288,30]
[334442893,1723103221503,-156.9038,0.00042888,30]
[334442894,1723103221528,-4575.39827135,0.000429,90]
[334442895,1723103221552,-150.2430063,0.000429,120]
[334442896,1723103221577,-393.49916822,0.000429,120]
[334442897,1723103221601,-170.61838225,0.000429,40]
[334442898,1723103221628,-592.8803975,0.000429,60]
[334442899,1723103221653,-204.62128992,0.00042942,30]
[334442900,1723103221677,-3669.9,0.00042943,94]
[334442901,1723103221702,-151.080814,0.00042948,119]
[334442902,1723103221727,-151.080814,0.00042948,119]
[334442903,1723103221752,-151.080814,0.00042948,119]
[334442904,1723103221779,-151.080814,0.00042948,119]
[334442905,1723103221805,-151.080814,0.00042948,119]
[334442906,1723103221847,-1553.29118914,0.00042949,30]
[334442907,1723103221871,-7447.57823048,0.00042957,30]
[334442908,1723103221896,-230.95186191,0.00042957,30]
[334442909,1723103221922,-163.69703194,0.00042968,30]
[334442910,1723103221948,-1328.58061029,0.0004297,30]
[334442911,1723103221973,-207.99976507,0.00042974,30]
[334442912,1723103221998,-409.0,0.00042986,120]
[334442913,1723103222023,-161.83085601,0.00043,30]
[334442914,1723103222052,-50000.0,0.00043,33]
[334442915,1723103222080,-50000.0,0.00043,43]
[334442916,1723103222106,-155.0,0.00043,120]
[334442917,1723103222131,-483.46595439,0.00043,30]
[334442918,1723103222158,-2000.0,0.00043,120]
[334442919,1723103222183,-1000.0,0.00043,120]
[334442920,1723103222207,-1000.0,0.00043,120]